bitfinex/quotes_BTCUSD_20250727
["timestamp","ask_amount","ask_price","bid_price","bid_amount"]
[1753612229553,0.20767469,118260.0,118250.0,0.01]
[1753612229800,0.20965469,118260.0,118250.0,0.13904]
[1753612230025,0.21833469,118260.0,118250.0,0.13904]
[1753612230248,0.24373769,118260.0,118250.0,0.13904]
[1753612230475,0.32731157,118260.0,118250.0,0.13904]
[1753612230919,0.32731157,118260.0,118250.0,0.14004]
[1753612231801,0.32731157,118260.0,118250.0,0.14104]
[1753612232304,0.34351157,118260.0,118250.0,0.14104]
[1753612232987,0.68351157,118260.0,118250.0,0.14104]
[1753612233449,0.56873769,118260.0,118250.0,0.14104]
[1753612233678,0.54789769,118260.0,118250.0,0.16393]
[1753612233906,0.54495769,118260.0,118250.0,0.16596]
[1753612234170,0.54595769,118260.0,118250.0,0.16914]
[1753612234669,0.54595769,118260.0,118250.0,0.16814]
[1753612234913,0.54795769,118260.0,118250.0,0.16814]
[1753612236730,0.63243499,118260.0,118250.0,0.16814]
[1753612237194,0.54795769,118260.0,118250.0,0.16814]
[1753612238758,0.54597769,118260.0,118250.0,0.18334]
[1753612238967,0.54597769,118260.0,118250.0,0.19944]
[1753612251798,0.20597769,118260.0,118250.0,0.19944]
[1753612266145,0.18057469,118260.0,118250.0,0.2839173]
[1753612269401,0.58057469,118260.0,118250.0,0.2839173]
[1753612290678,0.58273469,118260.0,118250.0,0.2839173]
[1753612302073,0.58057469,118260.0,118250.0,0.2839173]
[1753612306611,0.58273469,118260.0,118250.0,0.2839173]
[1753612309159,0.18273469,118260.0,118250.0,0.2839173]
[1753612310419,0.18273469,118260.0,118250.0,0.45305049]
[1753612310420,0.18903042,118260.0,118250.0,0.45305049]
[1753612311234,0.17757469,118260.0,118250.0,0.45305049]
[1753612317727,0.18601454,118270.0,118260.0,0.20111889]
[1753612317943,0.18601454,118270.0,118260.0,0.31523619]
[1753612318158,0.18601454,118270.0,118260.0,0.1461173]
[1753612318372,0.18601454,118270.0,118260.0,0.31523619]
[1753612320012,0.18801454,118270.0,118260.0,0.31523619]
[1753612321296,0.18901454,118270.0,118260.0,0.31523619]
[1753612324600,0.18055967,118270.0,118260.0,0.1461173]
[1753612325684,0.18055967,118270.0,118260.0,0.31523619]
[1753612330782,0.18055967,118270.0,118260.0,0.1461173]
[1753612331021,0.18265967,118270.0,118260.0,0.1461173]
[1753612336083,0.18265967,118270.0,118260.0,0.1429173]
[1753612337460,0.18265967,118270.0,118260.0,0.1274173]
[1753612342877,0.18901454,118270.0,118260.0,0.31493619]
[1753612343083,0.19746969,118270.0,118260.0,0.31493619]
[1753612346110,0.19746969,118270.0,118260.0,0.32339213]
[1753612346959,0.19746969,118270.0,118260.0,0.31493619]
[1753612347975,0.19746969,118270.0,118260.0,0.32339213]
[1753612348178,0.19746969,118270.0,118260.0,0.31493619]
[1753612349264,0.19746969,118270.0,118260.0,0.32339213]
[1753612349440,0.19746969,118270.0,118260.0,0.31493619]
[1753612349851,0.19746969,118270.0,118260.0,0.32339213]
[1753612350055,0.0283651,118270.0,118260.0,0.32339213]
[1753612351454,0.19746969,118270.0,118260.0,0.31493619]
[1753612352188,0.0283651,118270.0,118260.0,0.331848]
[1753612352835,0.19746969,118270.0,118260.0,0.31493619]
[1753612353051,0.19746969,118270.0,118260.0,0.32339213]
[1753612353509,0.20592491,118270.0,118260.0,0.31493619]
[1753612353942,0.0283651,118270.0,118260.0,0.32339213]
[1753612354516,0.0283651,118270.0,118260.0,0.331848]
[1753612355133,0.01990995,118270.0,118260.0,0.3403038]
[1753612355338,0.01145465,118270.0,118260.0,0.34875938]
[1753612355575,0.02836431,118270.0,118260.0,0.34875945]
[1753612356241,0.02536431,118270.0,118260.0,0.34875945]
[1753612356674,0.03381932,118270.0,118260.0,0.34875953]
[1753612356890,0.03381932,118270.0,118260.0,0.3403038]
[1753612357543,0.03381932,118270.0,118260.0,0.34875953]
[1753612357754,0.0422744,118270.0,118260.0,0.3403038]
[1753612357962,0.0422744,118270.0,118260.0,0.34875953]
[1753612358160,0.03381932,118270.0,118260.0,0.35721518]
[1753612358447,0.03381932,118270.0,118260.0,0.34875953]
[1753612358630,0.03381932,118270.0,118260.0,0.35721518]
[1753612358844,0.02536431,118270.0,118260.0,0.35721518]
[1753612360121,0.2113792,118270.0,118260.0,0.31493619]
[1753612360345,0.20292455,118270.0,118260.0,0.31493619]
[1753612360557,0.19446983,118270.0,118260.0,0.31493619]
[1753612362675,0.17755981,118270.0,118260.0,0.31493619]
[1753612362891,0.17952981,118270.0,118260.0,0.31493619]
[1753612369678,0.17107459,118270.0,118260.0,0.31493619]
[1753612370764,0.17107459,118270.0,118260.0,0.29973619]
[1753612370979,0.17107459,118270.0,118260.0,0.1274173]
[1753612372731,0.17107459,118270.0,118260.0,0.29653619]
[1753612373191,0.17107459,118270.0,118260.0,0.1274173]
[1753612373647,0.17107459,118270.0,118260.0,0.29653619]
[1753612381497,0.17107459,118270.0,118260.0,0.1306173]
[1753612381957,0.17107459,118270.0,118260.0,0.29973619]
[1753612383670,0.17107459,118270.0,118260.0,0.1306173]
[1753612384697,0.17107459,118270.0,118260.0,0.29973619]
[1753612387367,0.17107459,118270.0,118260.0,0.1306173]
[1753612387582,0.17107459,118270.0,118260.0,0.29973619]
[1753612388392,0.17107459,118270.0,118260.0,0.1306173]
[1753612389007,0.17107459,118270.0,118260.0,0.29973619]
[1753612390269,0.16910459,118270.0,118260.0,0.29973619]
[1753612390531,0.16910459,118270.0,118260.0,0.31593619]
[1753612391369,0.17755974,118270.0,118260.0,0.31593619]
[1753612398784,0.17755974,118270.0,118260.0,0.29973619]
[1753612399053,0.17953974,118270.0,118260.0,0.29973619]
[1753612400591,0.17755974,118270.0,118260.0,0.31483619]
[1753612402584,0.18601468,118270.0,118260.0,0.31483619]
[1753612408626,0.19446933,118270.0,118260.0,0.32329213]
[1753612409473,0.20292455,118270.0,118260.0,0.331748]
[1753612409684,0.20292455,118270.0,118260.0,0.32329213]
[1753612409886,0.20292455,118270.0,118260.0,0.31483619]
[1753612410123,0.03381996,118270.0,118260.0,0.31483619]
[1753612410329,0.03381996,118270.0,118260.0,0.32329213]
[1753612410985,0.20292455,118270.0,118260.0,0.32329213]
[1753612411192,0.20292455,118270.0,118260.0,0.31483619]
[1753612411440,0.20292455,118270.0,118260.0,0.32329213]
[1753612411869,0.03381996,118270.0,118260.0,0.32329213]
[1753612412496,0.20292455,118270.0,118260.0,0.31483619]
[1753612412724,0.20292455,118270.0,118260.0,0.32329213]
[1753612413656,0.20292455,118270.0,118260.0,0.31483619]
[1753612414325,0.20292455,118270.0,118260.0,0.32329213]
[1753612415154,0.20292455,118270.0,118260.0,0.31483619]
[1753612415381,0.20292455,118270.0,118260.0,0.32329213]
[1753612415698,0.20292455,118270.0,118260.0,0.331748]
[1753612416129,0.02536474,118270.0,118260.0,0.33174793]
[1753612416767,0.25134933,118270.0,118260.0,0.0844773]
[1753612417016,0.24289461,118270.0,118260.0,0.2130773]
[1753612417680,0.24289461,118270.0,118260.0,0.0844773]
[1753612418309,0.24289461,118270.0,118260.0,0.2130773]
[1753612419616,0.24289461,118270.0,118260.0,0.0844773]
[1753612419841,0.24289461,118270.0,118260.0,0.2130773]
[1753612420056,0.22779461,118270.0,118260.0,0.2130773]
[1753612425283,0.20695461,118270.0,118260.0,0.2370373]
[1753612428158,0.24389461,118270.0,118260.0,0.0844773]
[1753612428370,0.24389461,118270.0,118260.0,0.2130373]
[1753612433498,0.22305461,118270.0,118260.0,0.2369973]
[1753612433929,0.20695461,118270.0,118260.0,0.2369973]
[1753612435127,0.20699461,118270.0,118260.0,0.2369973]
[1753612437287,0.20699461,118270.0,118250.0,0.01]
[1753612437288,0.19267469,118260.0,118250.0,0.01]
[1753612437517,0.23470469,118260.0,118250.0,0.2230373]
[1753612438675,0.23470469,118260.0,118250.0,0.2240373]
[1753612439345,0.21386469,118260.0,118250.0,0.2240373]
[1753612439548,0.61386469,118260.0,118250.0,0.2467273]
[1753612441335,0.59786469,118260.0,118250.0,0.2477273]
[1753612441544,0.59470469,118260.0,118250.0,0.2477273]
[1753612446332,0.57960469,118260.0,118250.0,0.2477273]
[1753612450845,0.57960469,118260.0,118250.0,0.2497973]
[1753612453308,0.57964469,118260.0,118250.0,0.2497973]
[1753612459179,0.57964469,118260.0,118250.0,0.2529173]
[1753612459415,0.57964469,118260.0,118250.0,0.2680173]
[1753612461886,0.58607042,118260.0,118250.0,0.45245049]
[1753612462116,0.02540689,118260.0,118250.0,0.46936358]
[1753612462356,4e-05,118260.0,118250.0,0.89392652]
[1753612465314,4e-05,118260.0,118250.0,0.8262761]
[1753612469286,0.00849537,118260.0,118250.0,0.8262761]
[1753612469832,4e-05,118260.0,118250.0,0.8262761]
[1753612470053,0.0084953,118260.0,118250.0,0.8262761]
[1753612474729,4e-05,118260.0,118250.0,0.84372512]
[1753612479777,0.0084953,118260.0,118250.0,0.84372512]
[1753612480275,4e-05,118260.0,118250.0,0.84372512]
[1753612480490,0.0084953,118260.0,118250.0,0.84372512]
[1753612481342,0.01695074,118260.0,118250.0,0.84372512]
[1753612481985,0.03386219,118260.0,118250.0,0.8268126]
[1753612482203,0.20298165,118260.0,118250.0,0.80989951]
[1753612482415,0.03386276,118260.0,118250.0,0.81835602]
[1753612482849,0.02540689,118260.0,118250.0,0.82681246]
[1753612483064,0.19659628,118260.0,118250.0,0.64547049]
[1753612483299,0.22066628,118260.0,118250.0,0.73405049]
[1753612483511,0.19982628,118260.0,118250.0,0.73405049]
[1753612483745,0.19982628,118260.0,118250.0,0.75901049]
[1753612484099,0.19659628,118260.0,118250.0,0.75901049]
[1753612484719,0.01902145,118260.0,118250.0,0.76962707]
[1753612484931,0.02747732,118260.0,118250.0,0.79368358]
[1753612485147,0.01902145,118260.0,118250.0,0.80531002]
[1753612485339,0.01902145,118260.0,118250.0,0.82161002]
[1753612485953,0.01902145,118260.0,118250.0,0.81315358]
[1753612486163,0.02747739,118260.0,118250.0,0.81315358]
[1753612486357,0.01902145,118260.0,118250.0,0.82161002]
[1753612486973,0.01056544,118260.0,118250.0,0.82161002]
[1753612487203,0.03593255,118260.0,118250.0,0.82161002]
[1753612487407,0.03593255,118260.0,118250.0,0.81315358]
[1753612488232,0.03593255,118260.0,118250.0,0.82161002]
[1753612488649,0.03593255,118260.0,118250.0,0.81315358]
[1753612490971,0.03593255,118260.0,118250.0,0.82161002]
[1753612491199,0.03593255,118260.0,118250.0,0.81315358]
[1753612491437,0.03593255,118260.0,118250.0,0.82161002]
[1753612491925,0.02747668,118260.0,118250.0,0.82161002]
[1753612492442,0.02540689,118260.0,118250.0,0.82161002]
[1753612492682,0.02540689,118260.0,118250.0,0.81315358]
[1753612492892,0.02540689,118260.0,118250.0,0.82161002]
[1753612493107,0.02540689,118260.0,118250.0,0.81315358]
[1753612493550,0.02540689,118260.0,118250.0,0.82161002]
[1753612493735,0.02540689,118260.0,118250.0,0.81315358]
[1753612494651,0.02540689,118260.0,118250.0,0.82161002]
[1753612494888,0.02540689,118260.0,118250.0,0.81315358]
[1753612495954,0.01695109,118260.0,118250.0,0.81315358]
[1753612496168,0.02540689,118260.0,118250.0,0.81315358]
[1753612497254,0.02540682,118260.0,118250.0,0.82161002]
[1753612498131,0.02540682,118260.0,118250.0,0.47315358]
[1753612498583,0.02540682,118260.0,118250.0,0.48161002]
[1753612498812,0.02540682,118260.0,118250.0,0.47315358]
[1753612498941,0.02540682,118260.0,118250.0,0.34471358]
[1753612499594,0.02540682,118260.0,118250.0,0.47311358]
[1753612500024,0.02540682,118260.0,118250.0,0.34471358]
[1753612500242,0.02540682,118260.0,118250.0,0.47311358]
[1753612500432,0.03386262,118260.0,118250.0,0.47311358]
[1753612501445,0.03386262,118260.0,118250.0,0.34471358]
[1753612501692,0.03386262,118260.0,118250.0,0.46465707]
[1753612501870,0.03386262,118260.0,118250.0,0.33625707]
[1753612502294,0.03386262,118260.0,118250.0,0.47311358]
[1753612502675,0.04231849,118260.0,118250.0,0.47311358]
[1753612502881,0.03386262,118260.0,118250.0,0.34471358]
[1753612503075,0.03386262,118260.0,118250.0,0.47311358]
[1753612503477,0.03386262,118260.0,118250.0,0.34471358]
[1753612503684,0.03386262,118260.0,118250.0,0.47311358]
[1753612505882,0.01695109,118260.0,118250.0,0.49002625]
[1753612506115,0.01695109,118260.0,118250.0,0.48157002]
[1753612506342,0.02540689,118260.0,118250.0,0.48157002]
[1753612506609,0.01695109,118260.0,118250.0,0.49002639]
[1753612506854,0.01695102,118260.0,118250.0,0.49848269]
[1753612507061,0.01695102,118260.0,118250.0,0.49002639]
[1753612507508,0.01695102,118260.0,118250.0,0.48157002]
[1753612507731,0.02540675,118260.0,118250.0,0.48157002]
[1753612508483,0.02540675,118260.0,118250.0,0.49002639]
[1753612508934,0.01695102,118260.0,118250.0,0.49848269]
[1753612509171,0.01695102,118260.0,118250.0,0.49002639]
[1753612509315,0.02540667,118260.0,118250.0,0.49002639]
[1753612509942,0.02540667,118260.0,118250.0,0.49848269]
[1753612510391,0.02540667,118260.0,118250.0,0.48157002]
[1753612510707,0.03386247,118260.0,118250.0,0.48157002]
[1753612512016,0.02540667,118260.0,118250.0,0.48157002]
[1753612512155,0.03386247,118260.0,118250.0,0.48157002]
[1753612512827,0.0338624,118260.0,118250.0,0.48157002]
[1753612513150,0.02540667,118260.0,118250.0,0.49002639]
[1753612513715,0.02540667,118260.0,118250.0,0.48157002]
[1753612513939,0.02540667,118260.0,118250.0,0.49002639]
[1753612514808,0.02540667,118260.0,118250.0,0.48157002]
[1753612514943,0.03386247,118260.0,118250.0,0.48157002]
[1753612515142,0.03386247,118260.0,118250.0,0.47311358]
[1753612515367,0.03386247,118260.0,118250.0,0.48157002]
[1753612515583,0.03386247,118260.0,118250.0,0.47311358]
[1753612516432,0.03386247,118260.0,118250.0,0.45681358]
[1753612518429,0.03386247,118260.0,118250.0,0.47331358]
[1753612520242,0.03386247,118260.0,118250.0,0.45681358]
[1753612520462,0.03386247,118260.0,118250.0,0.44835707]
[1753612520888,0.04231834,118260.0,118250.0,0.44835707]
[1753612521116,0.04231834,118260.0,118250.0,0.45681358]
[1753612521528,0.06231834,118260.0,118250.0,0.45681358]
[1753612521724,0.05386247,118260.0,118250.0,0.45681358]
[1753612522979,0.05386247,118260.0,118250.0,0.47331358]
[1753612523833,0.06231834,118260.0,118250.0,0.46485707]
[1753612524039,0.06231834,118260.0,118250.0,0.47331358]
[1753612524233,0.06231834,118260.0,118250.0,0.46485707]
[1753612524454,0.06231834,118260.0,118250.0,0.47331358]
[1753612524879,0.05386247,118260.0,118250.0,0.47331358]
[1753612525699,0.05386247,118260.0,118250.0,0.48177002]
[1753612525930,0.05386247,118260.0,118250.0,0.68481002]
[1753612526365,0.05386247,118260.0,118250.0,0.67635358]
[1753612529865,0.05386247,118260.0,118250.0,0.68481002]
[1753612530076,0.05386247,118260.0,118250.0,0.67635358]
[1753612530507,0.04540667,118260.0,118250.0,0.68481002]
[1753612530705,0.05386247,118260.0,118250.0,0.68481002]
[1753612531122,0.05386247,118260.0,118250.0,0.67635358]
[1753612531555,0.05386247,118260.0,118250.0,0.66789707]
[1753612531798,0.05386247,118260.0,118250.0,0.67635358]
[1753612532990,0.04540667,118260.0,118250.0,0.67635358]
[1753612533202,0.04540667,118260.0,118250.0,0.68480995]
[1753612533937,0.0284953,118260.0,118250.0,0.6932661]
[1753612534179,0.02004,118260.0,118250.0,0.6932661]
[1753612538744,0.0284953,118260.0,118250.0,0.6932661]
[1753612539190,0.02004,118260.0,118250.0,0.6932661]
[1753612548247,0.02004,118260.0,118250.0,0.71071512]
[1753612549664,0.0284953,118260.0,118250.0,0.71071512]
[1753612550114,0.04540618,118260.0,118250.0,0.71071512]
[1753612550345,0.02004,118260.0,118250.0,0.71071512]
[1753612551371,0.0284953,118260.0,118250.0,0.71071512]
[1753612552395,0.03695074,118260.0,118250.0,0.71071512]
[1753612552599,0.0284953,118260.0,118250.0,0.71071512]
[1753612553406,0.03695074,118260.0,118250.0,0.71071512]
[1753612553589,0.03695067,118260.0,118250.0,0.71071512]
[1753612555588,0.0284953,118260.0,118250.0,0.71071512]
[1753612556392,0.03695074,118260.0,118250.0,0.71071512]
[1753612556587,0.0284953,118260.0,118250.0,0.71071512]
[1753612557398,0.03695067,118260.0,118250.0,0.71071512]
[1753612557603,0.04540618,118260.0,118250.0,0.71071512]
[1753612557818,0.03695067,118260.0,118250.0,0.71071512]
[1753612558279,0.04540618,118260.0,118250.0,0.71071512]
[1753612558896,0.03695067,118260.0,118250.0,0.71071512]
[1753612559365,0.04540611,118260.0,118250.0,0.71071512]
[1753612559564,0.03695067,118260.0,118250.0,0.71071512]
[1753612560300,0.05386169,118260.0,118250.0,0.71071512]
[1753612560725,0.04540611,118260.0,118250.0,0.71071512]
[1753612561827,0.05386169,118260.0,118250.0,0.71071512]
[1753612562635,0.06231742,118260.0,118250.0,0.70225897]
[1753612562860,0.05386204,118260.0,118250.0,0.71071527]
[1753612563082,0.05386204,118260.0,118250.0,0.7191715]
[1753612563514,0.04540639,118260.0,118250.0,0.71917107]
[1753612563701,0.04540639,118260.0,118250.0,0.71071492]
[1753612564122,0.05386204,118260.0,118250.0,0.71917107]
[1753612564527,0.05386204,118260.0,118250.0,0.71071492]
[1753612564770,0.06231777,118260.0,118250.0,0.71917107]
[1753612564979,0.05386204,118260.0,118250.0,0.71917107]
[1753612565605,0.06231784,118260.0,118250.0,0.70225869]
[1753612565794,0.06231784,118260.0,118250.0,0.71071492]
[1753612565999,0.06231784,118260.0,118250.0,0.70225869]
[1753612569105,0.06231784,118260.0,118250.0,0.71071492]
[1753612569555,0.06231784,118260.0,118250.0,0.70225869]
[1753612569730,0.06231834,118260.0,118250.0,0.69380239]
[1753612569931,0.05386247,118260.0,118250.0,0.70225862]
[1753612570483,0.05386247,118260.0,118250.0,0.70225869]
[1753612570695,0.04540667,118260.0,118250.0,0.71917107]
[1753612571341,0.04540667,118260.0,118250.0,0.71071492]
[1753612571561,0.04540667,118260.0,118250.0,0.71917107]
[1753612574071,0.04540667,118260.0,118250.0,0.71071492]
[1753612574274,0.05386247,118260.0,118250.0,0.71071492]
[1753612574492,0.04540667,118260.0,118250.0,0.71917107]
[1753612574906,0.04540667,118260.0,118250.0,0.70225869]
[1753612575102,0.05386247,118260.0,118250.0,0.71071492]
[1753612575305,0.02849544,118260.0,118250.0,0.71071492]
[1753612575511,0.04540682,118260.0,118250.0,0.71071492]
[1753612575758,0.04540682,118260.0,118250.0,0.70225869]
[1753612576138,0.04540682,118260.0,118250.0,0.69380239]
[1753612576343,0.04540682,118260.0,118250.0,0.70225869]
[1753612576972,0.04540682,118260.0,118250.0,0.69380239]
[1753612577177,0.04540682,118260.0,118250.0,0.70225869]
[1753612579221,0.04540682,118260.0,118250.0,0.71071492]
[1753612579451,0.04540682,118260.0,118250.0,0.69380239]
[1753612579705,0.04540682,118260.0,118250.0,0.70225869]
[1753612580311,0.04540682,118260.0,118250.0,0.71071492]
[1753612580525,0.04540682,118260.0,118250.0,0.70225869]
[1753612581539,0.04540675,118260.0,118250.0,0.70225869]
[1753612582393,0.05386262,118260.0,118250.0,0.70225869]
[1753612582602,0.04540675,118260.0,118250.0,0.70225869]
[1753612582837,0.05386255,118260.0,118250.0,0.70225869]
[1753612583676,0.05386255,118260.0,118250.0,0.69380239]
[1753612583896,0.03695102,118260.0,118250.0,0.70225869]
[1753612584350,0.04540667,118260.0,118250.0,0.69380239]
[1753612584591,0.04540667,118260.0,118250.0,0.70225869]
[1753612584858,0.03695102,118260.0,118250.0,0.70225869]
[1753612585063,0.03695102,118260.0,118250.0,0.68534602]
[1753612585279,0.03695102,118260.0,118250.0,0.67730239]
[1753612585720,0.03695102,118260.0,118250.0,0.69421492]
[1753612585936,0.03695102,118260.0,118250.0,0.67730239]
[1753612586147,0.03695102,118260.0,118250.0,0.68575869]
[1753612586782,0.04540675,118260.0,118250.0,0.67730239]
[1753612586995,0.03695102,118260.0,118250.0,0.68575869]
[1753612587211,0.04540675,118260.0,118250.0,0.67730239]
[1753612587606,0.04540675,118260.0,118250.0,0.67730246]
[1753612588060,0.04540675,118260.0,118250.0,0.68575883]
[1753612588270,0.04540675,118260.0,118250.0,0.67730246]
[1753612589402,0.03695102,118260.0,118250.0,0.68575883]
[1753612589622,0.04540667,118260.0,118250.0,0.68575883]
[1753612590486,0.04540667,118260.0,118250.0,0.69421513]
[1753612591139,0.02849544,118260.0,118250.0,0.70267136]
[1753612591368,0.03695102,118260.0,118250.0,0.70921485]
[1753612591581,0.02849544,118260.0,118250.0,0.70921485]
[1753612591854,0.03695102,118260.0,118250.0,0.70075862]
[1753612592070,0.02849544,118260.0,118250.0,0.717671]
[1753612592293,0.03695102,118260.0,118250.0,0.70921485]
[1753612592531,0.02849544,118260.0,118250.0,0.70921485]
[1753612592768,0.02849544,118260.0,118250.0,0.717671]
[1753612593206,0.02849537,118260.0,118250.0,0.717671]
[1753612593448,0.02004,118260.0,118250.0,0.717671]
[1753612593672,0.02849537,118260.0,118250.0,0.717671]
[1753612594338,0.0284953,118260.0,118250.0,0.717671]
[1753612595537,0.03695067,118260.0,118250.0,0.717671]
[1753612596015,0.0284953,118260.0,118250.0,0.717671]
[1753612596792,0.02004,118260.0,118250.0,0.717671]
[1753612598574,0.0284953,118260.0,118250.0,0.717671]
[1753612598853,0.02004,118260.0,118250.0,0.717671]
[1753612599345,0.0284953,118260.0,118250.0,0.717671]
[1753612599524,0.03695074,118260.0,118250.0,0.717671]
[1753612600924,0.04540639,118260.0,118250.0,0.70075862]
[1753612601187,0.04540639,118260.0,118250.0,0.7007589]
[1753612601406,0.04540632,118260.0,118250.0,0.70921513]
[1753612602445,0.04540632,118260.0,118250.0,0.7007589]
[1753612603078,0.04540632,118260.0,118250.0,0.70921513]
[1753612603281,0.04540632,118260.0,118250.0,0.6857589]
[1753612603488,0.04540632,118260.0,118250.0,0.69421513]
[1753612603757,0.04540632,118260.0,118250.0,0.6857589]
[1753612604285,0.04540632,118260.0,118250.0,0.69421513]
[1753612604495,0.04540632,118260.0,118250.0,0.6857589]
[1753612606354,0.04540632,118260.0,118250.0,0.69421513]
[1753612610017,0.04540632,118260.0,118250.0,0.6857589]
[1753612610230,0.04540632,118260.0,118250.0,0.68575897]
[1753612611499,0.04540632,118260.0,118250.0,0.69421527]
[1753612613187,0.04540632,118260.0,118250.0,0.7026715]
[1753612613489,0.04540632,118260.0,118250.0,0.69421527]
[1753612615211,0.04540632,118260.0,118250.0,0.7026715]
[1753612615942,0.04540632,118260.0,118250.0,0.69421527]
[1753612616306,0.04540625,118260.0,118250.0,0.7026715]
[1753612616484,0.0538619,118260.0,118250.0,0.69421527]
[1753612617819,0.05386183,118260.0,118250.0,0.69421527]
[1753612617959,0.05386183,118260.0,118250.0,0.7026715]
[1753612618168,0.05386183,118260.0,118250.0,0.69421527]
[1753612620055,0.05386183,118260.0,118250.0,0.68575897]
[1753612620264,0.05386183,118260.0,118250.0,0.73649897]
[1753612620510,0.05386183,118260.0,118250.0,0.68575897]
[1753612620728,0.05386183,118260.0,118250.0,0.69421527]
[1753612621766,0.05386183,118260.0,118250.0,0.68575897]
[1753612622365,0.05386183,118260.0,118250.0,0.69421527]
[1753612622572,0.05386183,118260.0,118250.0,0.68575897]
[1753612622921,0.06231748,118260.0,118250.0,0.68575897]
[1753612623121,0.06231748,118260.0,118250.0,0.69421527]
[1753612623336,0.06231748,118260.0,118250.0,0.6773026]
[1753612623556,0.06231748,118260.0,118250.0,0.68575897]
[1753612624523,0.05386218,118260.0,118250.0,0.6773026]
[1753612625031,0.06231798,118260.0,118250.0,0.6773026]
[1753612625236,0.05386218,118260.0,118250.0,0.6773026]
[1753612625575,0.05386218,118260.0,118250.0,0.68575897]
[1753612626889,0.05386218,118260.0,118250.0,0.69421527]
[1753612627373,0.05386218,118260.0,118250.0,0.68575897]
[1753612627545,0.05386218,118260.0,118250.0,0.69421527]
[1753612627787,0.05386218,118260.0,118250.0,0.68575897]
[1753612629391,0.04540653,118260.0,118250.0,0.6942152]
[1753612629618,0.03695095,118260.0,118250.0,0.6942152]
[1753612629838,0.0454066,118260.0,118250.0,0.69421527]
[1753612630326,0.03695095,118260.0,118250.0,0.7026715]
[1753612630541,0.0454066,118260.0,118250.0,0.69421527]
[1753612630779,0.03695095,118260.0,118250.0,0.69421527]
[1753612632217,0.0454066,118260.0,118250.0,0.69421527]
[1753612632428,0.03695095,118260.0,118250.0,0.7026715]
[1753612633956,0.03695095,118260.0,118250.0,0.7182715]
[1753612635006,0.03695095,118260.0,118250.0,0.70981527]
[1753612636018,0.03695095,118260.0,118250.0,0.7182715]
[1753612636253,0.02849544,118260.0,118250.0,0.718271]
[1753612636928,0.02849544,118260.0,118250.0,0.70981485]
[1753612637138,0.03695102,118260.0,118250.0,0.70135862]
[1753612637819,0.03695102,118260.0,118250.0,0.70981485]
[1753612638062,0.02849544,118260.0,118250.0,0.718271]
[1753612638497,0.03695102,118260.0,118250.0,0.70981485]
[1753612638719,0.02849544,118260.0,118250.0,0.718271]
[1753612639394,0.02849544,118260.0,118250.0,0.70981485]
[1753612640490,0.02849544,118260.0,118250.0,0.718271]
[1753612640896,0.02849544,118260.0,118250.0,0.70981485]
[1753612641109,0.03695102,118260.0,118250.0,0.70981485]
[1753612641334,0.02849544,118260.0,118250.0,0.70981485]
[1753612641613,0.03695102,118260.0,118250.0,0.70981485]
[1753612641823,0.02849544,118260.0,118250.0,0.718271]
[1753612643149,0.03695081,118260.0,118250.0,0.70981485]
[1753612644545,0.0284953,118260.0,118250.0,0.70981485]
[1753612644776,0.03695074,118260.0,118250.0,0.718271]
[1753612646125,0.04540632,118260.0,118250.0,0.70981485]
[1753612646344,0.03695074,118260.0,118250.0,0.70981485]
[1753612646571,0.03695074,118260.0,118250.0,0.718271]
[1753612647399,0.04540632,118260.0,118250.0,0.70981485]
[1753612647832,0.04540625,118260.0,118250.0,0.70981485]
[1753612650523,0.03695074,118260.0,118250.0,0.718271]
[1753612651384,0.0284953,118260.0,118250.0,0.718271]
[1753612651633,0.03695067,118260.0,118250.0,0.718271]
[1753612652062,0.04540618,118260.0,118250.0,0.718271]
[1753612652279,0.03695067,118260.0,118250.0,0.718271]
[1753612652515,0.04540618,118260.0,118250.0,0.70135862]
[1753612652976,0.04540618,118260.0,118250.0,0.718271]
[1753612653431,0.03695067,118260.0,118250.0,0.718271]
[1753612654192,0.0284953,118260.0,118250.0,0.718271]
[1753612654878,0.02004,118260.0,118250.0,0.718271]
[1753612655155,0.02004,118260.0,118250.0,2.331071]
[1753612655363,0.02004,118260.0,118250.0,2.671071]
[1753612660722,0.02004,118260.0,118250.0,3.600518]
[1753612662753,0.02004,118260.0,118250.0,3.143453]
[1753612664322,0.02004,118260.0,118250.0,2.788695]
[1753612664466,0.02004,118260.0,118250.0,2.358116]
[1753612666586,0.02004,118260.0,118250.0,2.865187]
[1753612667807,0.02004,118260.0,118250.0,2.507726]
[1753612670348,0.02004,118260.0,118250.0,2.171209]
[1753612670543,0.02004,118260.0,118250.0,2.153889]
[1753612677279,0.02004,118260.0,118250.0,2.098046]
[1753612682364,0.02004,118260.0,118250.0,1.109011]
[1753612682610,0.02004,118260.0,118250.0,4.362885]
[1753612682882,0.02004,118260.0,118250.0,4.304309]
[1753612683351,0.02004,118260.0,118250.0,5.319712]
[1753612683621,0.02004,118260.0,118250.0,5.249318]
[1753612683822,0.02004,118260.0,118250.0,4.81609]
[1753612684069,0.02004,118260.0,118250.0,4.81809]
[1753612684549,0.02004,118260.0,118250.0,5.004213]
[1753612684820,0.02004,118260.0,118250.0,4.539304]
[1753612685026,0.02004,118260.0,118250.0,5.221056]
[1753612685496,0.02004,118260.0,118250.0,5.199143]
[1753612685724,0.02004,118260.0,118250.0,4.839143]
[1753612686393,0.02004,118260.0,118250.0,4.714303]
[1753612686541,0.02004,118260.0,118250.0,4.523663]
[1753612687416,0.02004,118260.0,118250.0,4.687754]
[1753612688062,0.02004,118260.0,118250.0,4.521206]
[1753612688483,0.02004,118260.0,118250.0,4.985858]
[1753612689342,0.02004,118260.0,118250.0,4.705308]
[1753612689550,0.02004,118260.0,118250.0,3.406193]
[1753612689764,0.02004,118260.0,118250.0,3.190086]
[1753612689980,0.02004,118260.0,118250.0,3.144697]
[1753612690617,0.02004,118260.0,118250.0,2.997723]
[1753612691454,0.02004,118260.0,118250.0,1.759271]
[1753612691657,0.02004,118260.0,118250.0,3.467597]
[1753612692694,0.02004,118260.0,118250.0,1.759271]
[1753612692922,0.02004,118260.0,118250.0,4.3677]
[1753612693569,0.02004,118260.0,118250.0,4.366101]
[1753612694184,0.02004,118260.0,118250.0,4.069779]
[1753612694391,0.02004,118260.0,118250.0,4.03379]
[1753612694607,0.02004,118260.0,118250.0,4.207841]
[1753612695239,0.02004,118260.0,118250.0,4.245781]
[1753612695654,0.02004,118260.0,118250.0,4.239704]
[1753612696086,0.02004,118260.0,118250.0,3.539704]
[1753612696307,0.02004,118260.0,118250.0,3.385252]
[1753612696520,0.02004,118260.0,118250.0,3.554502]
[1753612696725,0.02004,118260.0,118250.0,3.685145]
[1753612697777,0.02004,118260.0,118250.0,3.80482]
[1753612698217,0.02004,118260.0,118250.0,3.733317]
[1753612699068,0.02004,118260.0,118250.0,4.433317]
[1753612699283,0.02004,118260.0,118250.0,4.421317]
[1753612699681,0.02004,118260.0,118250.0,3.39045]